bitfinex/quotes_SOLUSD_20250517
["timestamp","ask_amount","ask_price","bid_price","bid_amount"]
[1747440587521,22.30754108,168.26,168.13,24.59734752]
[1747440587824,22.30754108,168.26,168.13,44.64964886]
[1747440588343,22.30754108,168.26,168.13,50.59728163]
[1747440590040,22.30754108,168.26,168.13,44.64964886]
[1747440591035,52.02345692,168.26,168.13,44.64964886]
[1747440591931,52.02345692,168.26,168.13,18.64964886]
[1747440591932,20.80608726,168.22,168.13,18.64964886]
[1747440592548,26.0,168.19,168.13,18.64964886]
[1747440592713,26.0,168.19,168.09,1.6105]
[1747440592915,26.0,168.19,168.1,18.64964886]
[1747440594145,5.94601022,168.18,168.09,24.5986447]
[1747440595032,50.54108691,168.18,168.09,18.64964886]
[1747440595226,26.0,168.15,168.06,18.64964886]
[1747440595611,26.0,168.15,168.04,178.02576764]
[1747440595612,26.0,168.15,168.05,18.64964886]
[1747440596217,20.81598667,168.14,168.05,18.64964886]
[1747440596522,20.81598667,168.14,168.05,24.60016299]
[1747440598039,20.81598667,168.14,168.05,18.64964886]
[1747440599550,26.0,168.11,168.05,18.64964886]
[1747440600046,5.94883997,168.1,168.05,18.64964886]
[1747440600249,26.0,168.07,167.98,134.7]
[1747440600947,26.0,168.09,167.99,18.64964886]
[1747440601147,20.82093991,168.1,167.99,44.64964886]
[1747440602044,20.82093991,168.1,168.0,5.95238095]
[1747440602336,5.94883997,168.1,168.01,18.64964886]
[1747440603530,5.94883997,168.1,168.02,18.64964886]
[1747440604956,5.94883997,168.1,168.02,24.60126698]
[1747440605174,26.0,168.07,167.97,58.7134932]
[1747440605379,26.0,168.07,167.98,18.64964886]
[1747440605662,26.0,168.06,167.97,58.7134932]
[1747440605823,26.0,168.06,167.98,18.64964886]
[1747440606166,26.0,168.06,167.97,58.7134932]
[1747440606332,26.0,168.06,167.94,18.64964886]
[1747440606742,26.0,168.06,167.93,18.64964886]
[1747440607163,20.82713477,168.05,167.93,24.60426087]
[1747440607627,5.95060993,168.05,167.99,18.64964886]
[1747440608034,5.95060993,168.05,167.96,26.0]
[1747440608233,5.95060993,168.05,167.97,18.64964886]
[1747440608463,20.82713477,168.05,167.94,18.64964886]
[1747440609567,20.82713477,168.05,167.94,24.60404663]
[1747440611059,5.94848611,168.11,168.02,24.69594886]
[1747440611363,5.9477785,168.13,168.02,24.69594886]
[1747440612051,20.81722476,168.13,168.02,24.69594886]
[1747440612457,20.81722476,168.13,167.97,28.12]
[1747440612458,26.0,168.1,167.98,6.0463]
[1747440614480,1.5646,168.05,167.9,6.0463]
[1747440614685,26.0,168.02,167.91,18.64964886]
[1747440615279,20.83209332,168.01,167.91,18.64964886]
[1747440616687,20.83209332,168.01,167.91,24.60510849]
[1747440617198,5.95202666,168.01,167.91,18.64964886]
[1747440617357,26.0,167.98,167.91,18.64964886]
[1747440618054,26.0,167.98,167.87,18.64964886]
[1747440618260,15.0,167.98,167.87,18.64964886]
[1747440619186,20.83705422,167.97,167.87,18.64964886]
[1747440620269,26.0,167.96,167.87,18.64964886]
[1747440620978,26.0,167.96,167.87,24.6064316]
[1747440621573,5.95415302,167.95,167.87,24.6064316]
[1747440622081,20.83953557,167.95,167.87,18.64964886]
[1747440622284,26.0,167.92,167.84,18.64964886]
[1747440622672,26.0,167.92,167.81,6.3293]
[1747440622872,26.0,167.92,167.82,18.64964886]
[1747440623577,46.84450002,167.91,167.82,18.64964886]
[1747440623796,26.0,167.88,167.79,18.64964886]
[1747440624199,26.0,167.88,167.78,6.3293]
[1747440624394,26.0,167.88,167.79,18.64964886]
[1747440625407,20.84946684,167.87,167.79,18.64964886]
[1747440626817,20.84946684,167.87,167.77,18.64964886]
[1747440626988,20.84946684,167.87,167.75,24.61085291]
[1747440629337,20.84946684,167.87,167.73,16.42005134]
[1747440629338,26.0,167.84,167.73,18.64964886]
[1747440629605,55.24,167.83,167.73,18.64964886]
[1747440629904,84.52,167.83,167.72,21.46225801]
[1747440630798,120.22,167.83,167.72,21.46225801]
[1747440630983,1.5985,167.78,167.67,18.64964886]
[1747440631185,26.0,167.74,167.67,18.64964886]
[1747440631403,26.0,167.74,167.66,6.473]
[1747440631592,26.0,167.74,167.63,26.0]
[1747440631890,26.0,167.74,167.64,18.64964886]
[1747440632390,26.0,167.72,167.63,18.64964886]
[1747440632789,32.2532,167.72,167.6,18.64964886]
[1747440633007,32.2532,167.72,167.59,18.64964886]
[1747440633188,26.0,167.68,167.58,6.2075]
[1747440633686,26.0,167.7,167.58,12.17468323]
[1747440633891,26.0,167.7,167.59,18.64964886]
[1747440634286,5.96267366,167.71,167.59,18.64964886]
[1747440634516,5.96267366,167.71,167.61,18.64964886]
[1747440635112,5.96267366,167.71,167.62,5.96587519]
[1747440635408,5.96267366,167.71,167.62,18.64964886]
[1747440636810,20.86935781,167.71,167.59,5.96660726]
[1747440637010,20.86935781,167.71,167.6,18.64964886]
[1747440637686,5.96267366,167.71,167.6,18.64964886]
[1747440637882,5.96267366,167.71,167.63,18.64964886]
[1747440638927,20.86935781,167.71,167.63,18.64964886]
[1747440639233,20.86935781,167.71,167.6,5.96636128]
[1747440639713,20.86935781,167.71,167.59,44.64964886]
[1747440640087,8.1222,167.7,167.59,44.64964886]
[1747440641010,20.87184685,167.69,167.59,44.64964886]
[1747440641188,46.87184685,167.69,167.59,24.61646902]
[1747440641691,31.96338481,167.69,167.59,50.61646902]
[1747440643127,31.96338481,167.69,167.56,29.74]
[1747440643128,31.96338481,167.69,167.57,18.64964886]
[1747440644819,46.87184685,167.69,167.57,24.61719365]
[1747440651335,5.96338481,167.69,167.61,18.64964886]
[1747440652020,5.96308484,167.7,167.61,18.64964886]
[1747440653496,20.87065788,167.7,167.57,14.91913827]
[1747440653693,26.0,167.67,167.58,24.61694806]
[1747440654408,26.0,167.67,167.53,6.587]
[1747440654709,7.6657,167.66,167.53,32.587]
[1747440654927,7.6657,167.66,167.54,18.64964886]
[1747440655427,7.6657,167.66,167.54,24.61837274]
[1747440655601,5.96480763,167.65,167.54,24.61837274]
[1747440656924,20.87682671,167.65,167.54,24.61837274]
[1747440659032,26.0,167.62,167.5,18.64964886]
[1747440659408,26.0,167.6,167.5,18.64964886]
[1747440659804,26.0,167.6,167.5,24.6195114]
[1747440660024,31.96587519,167.62,167.5,24.6195114]
[1747440660327,46.88056317,167.62,167.5,50.6195114]
[1747440660525,46.88056317,167.62,167.49,12.43943595]
[1747440660526,26.0,167.59,167.49,12.43943595]
[1747440660731,26.0,167.59,167.5,18.64964886]
[1747440662133,31.9672992,167.58,167.5,24.61975715]
[1747440663213,26.0,167.61,167.5,24.61975715]
[1747440663731,5.96587519,167.62,167.5,39.54513028]
[1747440663939,5.96587519,167.62,167.5,174.24513028]
[1747440664249,31.96587519,167.62,167.5,174.24513028]
[1747440665231,26.0,167.59,167.5,153.34964886]
[1747440665530,26.0,167.59,167.5,134.7]
[1747440665741,26.0,167.59,167.5,140.67011626]
[1747440665938,20.88056317,167.62,167.51,18.64964886]
[1747440666135,31.96587519,167.62,167.51,18.64964886]
[1747440667145,31.96587519,167.62,167.52,5.96943648]
[1747440667748,5.96587519,167.62,167.53,18.64964886]
[1747440667951,31.96523995,167.64,167.53,153.34964886]
[1747440668242,5.96489248,167.65,167.57,18.64964886]
[1747440668627,5.96409614,167.67,167.57,18.64964886]
[1747440669020,5.96338481,167.69,167.59,18.64964886]
[1747440669239,5.96338481,167.69,167.61,18.64964886]
[1747440669745,20.87184685,167.69,167.59,18.64964886]
[1747440670108,5.96338481,167.69,167.59,18.64964886]
[1747440671740,5.96338481,167.69,167.6,5.96658711]
[1747440672151,5.96296813,167.71,167.61,18.64964886]
[1747440672454,5.96296813,167.71,167.61,46.64964886]
[1747440672623,5.96296813,167.71,167.61,18.64964886]
[1747440672815,20.86965228,167.71,167.59,160.7]
[1747440673036,26.0,167.68,167.6,18.64964886]
[1747440673235,26.0,167.68,167.59,134.7]
[1747440673847,5.96409614,167.67,167.59,134.7]
[1747440674031,5.96409614,167.67,167.59,140.66685991]
[1747440674348,31.96381659,167.68,167.6,18.64964886]
[1747440674859,5.96347629,167.69,167.6,44.64964886]
[1747440676041,81.13536292,167.74,167.63,26.0]
[1747440676254,5.96196267,167.73,167.63,160.7]
[1747440676826,5.96196267,167.73,167.63,134.7]
[1747440677445,5.96196267,167.73,167.64,18.64964886]
[1747440677944,5.96196267,167.73,167.66,18.64964886]
[1747440678128,107.13536292,167.74,167.66,18.64964886]
[1747440678129,56.99704814,167.74,167.66,18.64964886]
[1747440679121,51.03536292,167.74,167.66,24.92874886]
[1747440679319,5.96054121,167.77,167.66,24.92874886]
[1747440679827,33.50010179,167.78,167.66,24.92874886]
[1747440680156,31.96030179,167.78,167.68,18.64964886]
[1747440681123,31.96030179,167.78,167.69,5.96338481]
[1747440682651,46.86076668,167.78,167.67,5.96409614]
[1747440682845,46.86076668,167.78,167.68,18.64964886]
[1747440683547,5.95987196,167.79,167.68,179.34964886]
[1747440683754,5.95958894,167.8,167.72,18.64964886]
[1747440683949,5.9592282,167.81,167.72,153.34964886]
[1747440684255,5.9592282,167.81,167.73,27.28]
[1747440684549,5.95841029,167.83,167.73,27.28]
[1747440684736,5.95841029,167.83,167.75,18.64964886]
[1747440685756,5.95841029,167.83,167.75,24.61081391]
[1747440686945,5.95770032,167.85,167.75,30.95941391]
[1747440687158,5.95770032,167.85,167.75,165.65941391]
[1747440687957,20.85195113,167.85,167.75,165.65941391]
[1747440689335,5.95770032,167.85,167.75,165.65941391]
[1747440690453,26.0,167.82,167.73,161.66]
[1747440690760,26.0,167.82,167.74,18.64964886]
[1747440691652,20.85195113,167.85,167.74,18.64964886]
[1747440691854,26.0,167.84,167.74,18.64964886]
[1747440692465,20.85443603,167.83,167.74,18.64964886]
[1747440692966,26.0,167.8,167.71,141.0486]
[1747440693136,26.0,167.8,167.71,6.3486]
[1747440694658,5.95983074,167.79,167.71,12.31126302]
[1747440694862,5.95983074,167.79,167.72,18.64964886]
[1747440695751,5.95983074,167.79,167.72,24.61181984]
[1747440696264,5.95983074,167.79,167.72,18.64964886]
[1747440697976,5.95983074,167.79,167.72,24.61189422]
[1747440698945,5.95983074,167.79,167.72,18.64964886]
[1747440699866,5.95983074,167.79,167.72,24.61192359]
[1747440701948,20.85596577,167.82,167.72,18.64964886]
[1747440703077,20.85596577,167.82,167.72,24.61194172]
[1747440707173,20.85596577,167.82,167.72,18.64964886]
[1747440707378,26.0,167.79,167.71,134.7]
[1747440707774,26.0,167.79,167.7,18.64964886]
[1747440709287,20.86065084,167.78,167.7,18.64964886]
[1747440710185,20.86065084,167.78,167.69,162.22]
[1747440710357,20.86065084,167.78,167.69,134.7]
[1747440711476,1.5496,167.77,167.69,134.7]
[1747440713486,5.96089651,167.76,167.69,134.7]
[1747440713785,5.96089651,167.76,167.69,18.64964886]
[1747440714583,20.8631378,167.76,167.69,18.64964886]
[1747440716071,20.8631378,167.76,167.67,6.4069]
[1747440716265,46.8631378,167.76,167.67,6.4069]
[1747440718358,76.66762039,167.76,167.65,25.64]
[1747440718559,26.0,167.73,167.63,6.4467]
[1747440718766,26.0,167.72,167.59,6.4467]
[1747440718976,20.86935781,167.71,167.59,173.11345119]
[1747440719177,20.86935781,167.71,167.6,18.64964886]
[1747440719377,5.96196267,167.73,167.64,18.64964886]
[1747440719595,5.96196267,167.73,167.64,153.34964886]
[1747440719888,5.96196267,167.73,167.64,178.84964886]
[1747440720766,5.96125186,167.75,167.65,5.96480763]
[1747440720980,5.96125186,167.75,167.66,18.64964886]
[1747440721189,5.96125186,167.75,167.67,6.1511]
[1747440721365,5.96125186,167.75,167.68,18.64964886]
[1747440722972,20.86335097,167.76,167.68,18.64964886]
[1747440724663,20.86335097,167.76,167.68,24.61335571]
[1747440725902,20.86335097,167.76,167.68,18.64964886]
[1747440726588,5.96066477,167.77,167.7,18.64964886]
[1747440726794,5.95912043,167.81,167.7,153.34964886]
[1747440727194,5.95912043,167.81,167.71,25.24]
[1747440727486,5.95912043,167.81,167.72,18.64964886]
[1747440727890,5.95876534,167.82,167.73,5.96196267]
[1747440728288,5.95876534,167.82,167.74,18.64964886]
[1747440728482,5.95853922,167.83,167.74,153.34964886]
[1747440728683,5.95853922,167.83,167.75,7.9276]
[1747440729171,5.95853922,167.83,167.75,142.6276]
[1747440729402,5.9573454,167.86,167.76,18.64964886]
[1747440729585,5.9573454,167.86,167.76,153.34964886]
[1747440729893,20.85070891,167.86,167.76,159.31021163]
[1747440734495,5.9573454,167.86,167.76,159.31021163]
[1747440735007,5.95663569,167.88,167.8,18.64964886]
[1747440736898,25.62,167.89,167.8,24.60907278]
[1747440737105,14.8886966,167.92,167.8,159.30907278]
[1747440737314,5.95486214,167.93,167.8,174.20776169]
[1747440737490,31.95486214,167.93,167.8,174.20776169]
[1747440737801,5.95486214,167.93,167.8,174.20776169]
[1747440738111,31.95486214,167.93,167.8,174.20776169]
[1747440740505,31.95486214,167.93,167.83,26.0]
[1747440740699,5.95426311,167.95,167.84,46.27274886]
[1747440740879,5.95344406,167.97,167.87,26.0]
[1747440741198,5.95344406,167.97,167.86,18.64964886]
[1747440741199,31.95344406,167.97,167.86,18.64964886]
[1747440741397,5.95273528,167.99,167.86,18.64964886]
[1747440741578,5.95273528,167.99,167.89,26.0]
[1747440741773,25.6,168.0,167.9,18.64964886]
[1747440742004,5.95167241,168.02,167.9,153.34964886]
[1747440742186,31.95167241,168.02,167.9,153.34964886]
[1747440742498,5.95167241,168.02,167.9,153.34964886]
[1747440742705,14.87897214,168.03,167.92,18.64964886]
[1747440742877,26.0,168.02,167.92,43.52964886]
[1747440744111,5.95202666,168.01,167.94,18.64964886]
[1747440745015,20.83209332,168.01,167.94,18.64964886]
[1747440745706,20.83209332,168.01,167.92,165.53517873]
[1747440745914,20.83209332,168.01,167.93,18.64964886]
[1747440746614,20.83209332,168.01,167.93,24.6043858]
[1747440749111,20.83209332,168.01,167.93,18.64964886]
[1747440750804,20.83209332,168.01,167.9,24.6]
[1747440751004,20.83209332,168.01,167.91,18.64964886]
[1747440752520,26.0,167.98,167.9,134.7]
[1747440752720,26.0,167.98,167.89,18.00714343]
[1747440753014,1.5215,167.97,167.89,18.00714343]
[1747440753819,26.0,167.96,167.89,18.00714343]
[1747440754123,26.0,167.96,167.85,134.7]
[1747440754332,26.0,167.96,167.85,18.64964886]
[1747440754920,5.95415302,167.95,167.85,5.95764193]
[1747440755300,20.83953557,167.95,167.84,26.23069473]
[1747440757227,5.95415302,167.95,167.85,18.64964886]
[1747440757623,5.95415302,167.95,167.86,18.64964886]
[1747440758425,5.95415302,167.95,167.85,134.7]
[1747440758600,26.0,167.92,167.85,18.64964886]
[1747440760531,5.95557143,167.91,167.83,140.8117]
[1747440760711,5.95557143,167.91,167.83,134.7]
[1747440760914,20.84450002,167.91,167.81,160.7]
[1747440761141,20.84450002,167.91,167.79,6.2179]
[1747440761142,26.0,167.88,167.79,6.2179]
[1747440761303,26.0,167.88,167.78,24.6]
[1747440762119,26.0,167.88,167.79,18.64964886]
[1747440762829,5.95699052,167.87,167.79,24.60922723]
[1747440763034,5.95699052,167.87,167.79,159.30922723]
[1747440764406,5.95557143,167.91,167.83,18.64964886]
[1747440765120,24.68,167.92,167.83,18.64964886]
[1747440765121,5.95523431,167.92,167.83,26.37264886]
[1747440765318,5.95450756,167.94,167.87,18.64964886]
[1747440765709,5.95416941,167.95,167.87,18.64964886]
[1747440766037,54.33791666,167.96,167.88,5.95663569]
[1747440766220,5.95344842,167.97,167.89,18.64964886]
[1747440767236,5.95344842,167.97,167.89,5.95595699]
[1747440767640,5.95238095,168.0,167.9,18.64964886]
[1747440767817,5.95238095,168.0,167.91,6.398]
[1747440769512,5.95202666,168.01,167.91,12.35326139]
[1747440770438,20.83209332,168.01,167.91,12.35326139]
[1747440770738,20.83209332,168.01,167.91,147.05326139]
[1747440771738,5.95202666,168.01,167.91,147.05326139]
[1747440772308,5.95202666,168.01,167.92,18.64964886]
[1747440772514,5.95202666,168.01,167.92,20.30524886]
[1747440772731,50.68,168.02,167.92,205.58524886]
[1747440772732,5.95177932,168.02,167.92,205.58524886]
[1747440773135,5.95025586,168.06,167.96,18.64964886]
[1747440773523,31.95025586,168.06,167.96,18.64964886]
[1747440773825,5.95025586,168.06,167.98,18.64964886]
[1747440774633,5.94919388,168.09,167.98,179.34964886]
[1747440774943,5.94919388,168.09,168.0,18.64964886]
[1747440775321,5.94919388,168.09,168.0,20.20124886]
[1747440775528,24.68,168.12,168.02,18.64964886]
[1747440775529,5.94890216,168.1,168.02,18.64964886]
[1747440775728,5.94848611,168.11,168.04,18.64964886]
[1747440776843,5.94848611,168.11,168.06,18.64964886]
[1747440777923,5.9477785,168.13,168.06,18.64964886]
[1747440779448,5.9477785,168.13,168.05,26.14462755]
[1747440780246,20.81722476,168.13,168.05,20.19412033]
[1747440780447,46.81722476,168.13,168.05,20.19412033]
[1747440780625,26.0,168.1,168.05,20.19412033]
[1747440781247,26.0,168.08,168.05,20.19412033]
[1747440781960,5.94990182,168.07,168.05,20.19412033]
[1747440783340,1.5324,168.06,168.05,20.19412033]
[1747440784134,33.48265586,168.06,168.05,20.19412033]
[1747440784874,31.95025586,168.06,168.05,20.19412033]
[1747440786663,31.95025586,168.06,167.94,6.4825]
[1747440786664,76.57717481,168.06,167.94,6.4825]
[1747440787024,76.57717481,168.06,167.94,12.43698178]
[1747440787225,46.82589551,168.06,167.95,18.64964886]
[1747440787455,46.82589551,168.06,167.95,44.64964886]
[1747440788250,46.82589551,168.06,167.97,18.64964886]
[1747440788759,46.82589551,168.06,167.96,5.95379852]
[1747440789451,26.0,168.03,167.95,18.64964886]
[1747440789834,26.0,168.03,167.94,12.43693052]
[1747440790358,5.95167241,168.02,167.94,12.43693052]
[1747440790955,5.95167241,168.02,167.94,6.4825]
[1747440791930,5.95167241,168.02,167.94,12.43680741]
[1747440793339,14.87782129,168.04,167.94,6.4825]
[1747440794047,14.87782129,168.04,167.94,12.43697687]
[1747440794556,5.95025586,168.06,167.95,44.64964886]
[1747440794768,5.95025586,168.06,167.98,26.0]
[1747440794942,5.95025586,168.06,167.99,18.64964886]
[1747440795259,20.82129249,168.1,168.01,5.95202666]
[1747440795462,20.82129249,168.1,167.99,134.7]
[1747440795759,20.82129249,168.1,168.0,18.64964886]
[1747440796760,20.82129249,168.1,167.99,134.7]
[1747440797261,20.82129249,168.1,167.99,140.65264813]
[1747440798052,5.94954783,168.08,167.99,140.65264813]
[1747440799159,20.82341741,168.08,167.99,140.65264813]
[1747440799362,20.82341741,168.08,167.99,134.7]
[1747440800757,14.87386958,168.08,167.98,26.0]
[1747440801134,26.0,168.05,167.96,1.6281]
[1747440801334,1.6171,168.03,167.93,18.64964886]
[1747440801552,1.6171,168.03,167.92,1.5758]
[1747440801933,1.6171,168.03,167.92,7.5310069]
[1747440802747,5.95167241,168.02,167.92,7.5310069]
[1747440803362,20.83085345,168.02,167.92,7.5310069]
[1747440804057,5.95167241,168.02,167.93,44.64964886]
[1747440804837,5.95131821,168.03,167.94,5.95450756]
[1747440805260,5.95131821,168.03,167.95,18.64964886]
[1747440805449,5.95060993,168.05,167.95,153.34964886]
[1747440805764,26.1571,168.07,167.97,24.83634886]
[1747440805765,30.4900232,168.07,167.97,24.83634886]
[1747440805966,5.9500232,168.07,167.97,159.53634886]
[1747440806767,31.94954783,168.08,167.99,18.64964886]
[1747440806949,5.94954783,168.08,167.99,18.64964886]
[1747440807953,5.94919388,168.09,168.0,5.95238095]
[1747440810459,26.0,168.08,167.98,134.7]
[1747440811966,26.0,168.08,167.98,140.65301727]
[1747440812381,5.94990182,168.07,167.98,140.65301727]
[1747440815772,5.94990182,168.07,167.98,5.95301727]
[1747440817683,5.94990182,168.07,167.99,18.64964886]
[1747440818583,20.82217859,168.09,168.0,5.95238095]
[1747440821885,5.94919388,168.09,168.0,7.57938095]
[1747440822076,22.14856121,168.11,168.04,26.0]
[1747440822271,22.14856121,168.11,168.05,6.4711]
[1747440823784,22.14856121,168.11,168.06,5.95025586]
[1747440824955,28.09718891,168.11,168.04,26.0]
[1747440825395,28.09718891,168.11,168.03,30.41126699]
[1747440825869,28.09718891,168.11,168.03,24.46]
[1747440826070,42.96840418,168.11,168.03,24.46]
[1747440826785,42.96840418,168.11,168.03,30.41129017]
[1747440826990,28.09718891,168.11,168.03,30.41129017]
[1747440828988,42.96840418,168.11,168.03,24.46]
[1747440829175,42.96840418,168.11,168.03,30.41127702]
[1747440829379,28.09718891,168.11,168.03,30.41127702]
[1747440830291,22.14856121,168.11,168.04,44.64964886]
[1747440830494,5.9482744,168.12,168.04,44.64964886]
[1747440831177,20.81666569,168.14,168.05,5.95060993]
[1747440831489,5.94742476,168.14,168.05,5.95060993]
[1747440831694,20.81598667,168.14,168.05,5.95060993]
[1747440832401,20.81598667,168.14,168.04,31.95082202]
[1747440834804,20.81598667,168.14,168.04,26.0]
[1747440836104,20.81598667,168.14,168.01,147.12278974]
[1747440836286,20.81598667,168.14,168.02,26.0]
[1747440836698,9.2,168.13,168.02,26.0]
[1747440837204,20.81846299,168.12,168.02,31.95165062]
[1747440838589,9.2,168.11,168.01,6.4711]
[1747440838909,9.2,168.11,167.99,50.4]
[1747440839681,5.94883997,168.1,168.0,5.95231997]
[1747440840086,20.82093991,168.1,167.99,31.95260858]
[1747440842286,26.0,168.09,167.98,5.95307956]
[1747440843215,26.0,168.09,167.97,38.48380914]
[1747440844413,20.82341741,168.08,167.97,38.48380914]
[1747440844614,20.82341741,168.08,167.98,18.64964886]
[1747440844938,5.94883997,168.1,167.98,18.64964886]
[1747440845892,5.94883997,168.1,167.97,38.48380914]
[1747440845893,5.94883997,168.1,168.0,18.64964886]
[1747440847018,5.94883997,168.1,168.01,5.95202666]
[1747440847519,5.94883997,168.1,168.02,18.64964886]
[1747440848890,5.94813228,168.12,168.03,5.95131821]
[1747440849114,20.81846299,168.12,168.0,26.0]
[1747440850820,20.81846299,168.12,168.01,5.95202666]
[1747440851612,5.94813228,168.12,168.04,26.0]
[1747440852213,5.94742476,168.14,168.05,18.64964886]
[1747440853624,5.94742476,168.14,168.06,5.95025586]
[1747440858830,33.49288036,168.15,168.06,5.95025586]
[1747440859021,24.4,168.18,168.07,44.64964886]
[1747440859528,30.3461235,168.18,168.07,179.34964886]
[1747440859700,5.9461235,168.18,168.07,179.34964886]
[1747440860727,5.94565669,168.19,168.08,20.82341741]
[1747440861230,5.94565669,168.19,168.08,5.94954783]
[1747440861427,5.94565669,168.19,168.09,18.64964886]
[1747440862334,20.80979843,168.19,168.09,24.59876266]
[1747440865226,76.53808191,168.19,168.07,160.7]
[1747440866529,26.0,168.16,168.07,134.7]
[1747440867327,20.81474872,168.15,168.07,134.7]
[1747440868826,20.81474872,168.15,168.05,6.407]
[1747440873830,50.55010405,168.15,168.05,6.407]
[1747440874743,20.81474872,168.15,168.05,12.35748706]
[1747440875256,5.94707106,168.15,168.06,44.64964886]
[1747440876064,5.94671741,168.16,168.07,5.94990182]
[1747440877246,20.81351093,168.16,168.07,5.94990182]
[1747440877455,20.81351093,168.16,168.06,31.95022192]
[1747440880448,46.81351093,168.16,168.05,141.107]
[1747440881723,46.81351093,168.16,168.05,6.407]
[1747440883055,46.81351093,168.16,168.05,12.35757961]
[1747440885960,46.81351093,168.16,168.06,18.64964886]
[1747440887144,46.81351093,168.16,168.07,5.94990182]
[1747440887964,20.81351093,168.16,168.07,5.94990182]
[1747440890569,14.86679352,168.16,168.07,5.94990182]
[1747440891368,14.86679352,168.16,168.05,141.107]
[1747440892348,46.81598667,168.14,168.05,134.7]
[1747440892535,1.5112,168.13,168.03,33.53838165]
[1747440893474,1.5112,168.13,168.01,208.31264886]
[1747440893764,1.5112,168.13,168.01,73.61264886]
[1747440894357,20.81846299,168.12,168.01,79.56459935]
[1747440895465,20.81846299,168.12,168.01,60.91495049]
[1747440896174,20.81846299,168.12,168.01,36.77495049]
[1747440896773,20.81846299,168.12,168.01,12.51495049]
[1747440897557,20.81846299,168.12,168.02,18.64964886]
[1747440897756,5.94813228,168.12,168.02,18.64964886]
[1747440898270,5.94813228,168.12,168.03,5.95131821]
[1747440898645,5.94813228,168.12,168.02,5.95160669]
[1747440899752,20.81846299,168.12,168.02,5.95160669]
[1747440900479,5.94813228,168.12,168.02,5.95160669]
[1747440901252,26.0,168.09,167.99,136.3068]
[1747440901983,20.82341741,168.08,167.99,136.3068]
[1747440902161,20.82341741,168.08,167.99,142.25942541]
[1747440902355,5.94954783,168.08,167.99,142.25942541]
[1747440902554,5.94883997,168.1,168.0,44.64964886]
[1747440902757,5.94843257,168.12,168.04,18.64964886]
[1747440902956,5.94843257,168.12,168.04,24.90174886]
[1747440903478,5.94843257,168.12,168.01,26.0]
[1747440903866,20.81876328,168.12,168.01,31.9517274]
[1747440905562,20.81876328,168.12,168.01,26.0]
[1747440905765,50.55942471,168.12,168.0,6.2521]
[1747440907562,50.55942471,168.12,167.98,18.64964886]
[1747440907563,26.0,168.08,167.98,18.64964886]
[1747440908361,26.0,168.08,167.98,24.60268198]
[1747440909076,26.0,168.1,167.98,24.60268198]
[1747440909263,20.81876328,168.12,168.02,18.64964886]
[1747440910770,20.81876328,168.12,168.02,24.60129197]
[1747440911483,20.81876328,168.12,168.01,31.95197273]
[1747440911785,20.81876328,168.12,168.01,26.0]
[1747440912077,20.81876328,168.12,168.01,31.9519524]
[1747440912287,20.81876328,168.12,168.01,26.0]
[1747440912583,20.81876328,168.12,168.01,31.95197728]
[1747440913285,26.0,168.04,167.96,24.60344738]
[1747440913486,5.95131821,168.03,167.96,18.64964886]
[1747440913782,5.95131821,168.03,167.95,37.15792338]
[1747440913955,20.82961375,168.03,167.95,37.15792338]
[1747440914155,20.82961375,168.03,167.93,134.7]
[1747440914356,20.82961375,168.03,167.92,6.0023]
[1747440914554,26.0,167.96,167.89,10.31109945]
[1747440914759,26.0,167.92,167.89,10.31109945]
[1747440915060,34.40035988,167.92,167.83,18.45752548]
[1747440915261,34.40035988,167.92,167.83,15.12432548]
[1747440915262,26.0,167.88,167.83,15.12432548]
[1747440915593,31.95805529,167.84,167.83,15.12432548]
[1747440916265,46.85319351,167.84,167.75,9.31793609]
[1747440916466,86.04815206,167.84,167.75,9.31793609]
[1747440916665,26.0,167.8,167.75,9.31793609]
[1747440916873,26.0,167.76,167.75,9.31793609]
[1747440917085,25.04,167.79,167.75,9.31793609]
[1747440917284,26.0,167.78,167.75,9.31793609]
[1747440917495,31.96089651,167.76,167.75,9.31793609]
[1747440917680,5.96089651,167.76,167.75,9.31793609]
[1747440918467,31.00001465,167.79,167.75,9.31793609]
[1747440918766,5.95937116,167.81,167.7,18.64964886]
[1747440919172,25.06,167.82,167.7,18.64964886]
[1747440919494,5.9586453,167.83,167.74,18.64964886]
[1747440919666,25.06,167.84,167.74,18.64964886]
[1747440919864,26.0,167.81,167.71,26.0]
[1747440920865,34.4646821,167.84,167.72,18.64964886]
[1747440921567,5.95841029,167.83,167.73,5.96196267]
[1747440922471,5.95841029,167.83,167.71,31.96235787]